bitfinex/quotes_BTCUSD_20250526
["timestamp","ask_amount","ask_price","bid_price","bid_amount"]
[1748292234256,0.01828211,109390.0,109380.0,4.33118694]
[1748292234476,0.21023656,109400.0,109390.0,0.56437357]
[1748292234689,0.20109638,109400.0,109390.0,6.14164113]
[1748292235232,0.20109638,109400.0,109390.0,6.15078256]
[1748292235456,0.21023648,109400.0,109390.0,6.71572373]
[1748292236004,0.21123648,109400.0,109390.0,6.71572373]
[1748292236206,0.03756181,109400.0,109390.0,6.72486433]
[1748292236420,0.22037774,109400.0,109390.0,6.73017703]
[1748292237039,0.02742163,109400.0,109390.0,6.73931804]
[1748292237275,0.02742163,109400.0,109390.0,6.73117703]
[1748292237481,0.21123698,109400.0,109390.0,6.74031804]
[1748292237973,0.02742163,109400.0,109390.0,6.74031804]
[1748292238112,0.21937774,109400.0,109390.0,6.74031804]
[1748292238320,0.21937774,109400.0,109390.0,6.74131804]
[1748292238629,0.02742163,109400.0,109390.0,6.74131804]
[1748292238842,0.21021733,109410.0,109400.0,0.57149646]
[1748292239056,0.20107807,109410.0,109400.0,6.69542258]
[1748292239272,0.02741845,109410.0,109400.0,6.70456276]
[1748292239475,0.02741836,109410.0,109400.0,6.70456276]
[1748292239679,0.21935676,109410.0,109400.0,6.69542258]
[1748292240269,0.2284966,109410.0,109400.0,6.69542258]
[1748292240411,0.21935734,109410.0,109400.0,6.72073428]
[1748292241241,0.22849727,109410.0,109400.0,6.72987463]
[1748292241529,0.21935776,109410.0,109400.0,6.87603463]
[1748292242675,0.21935776,109410.0,109400.0,6.88517489]
[1748292244567,0.21935776,109410.0,109400.0,6.86689428]
[1748292244762,0.21935776,109410.0,109400.0,6.87603463]
[1748292245042,0.21935776,109410.0,109400.0,6.88517489]
[1748292245980,0.21935776,109410.0,109400.0,6.87603463]
[1748292249705,0.21021817,109410.0,109400.0,6.87603463]
[1748292250161,0.21021817,109410.0,109400.0,6.86689445]
[1748292250365,0.21021817,109410.0,109400.0,5.99694496]
[1748292250565,0.21021817,109410.0,109400.0,6.00608539]
[1748292250744,0.20107841,109410.0,109400.0,6.00608539]
[1748292251788,0.01827735,109420.0,109410.0,0.20107807]
[1748292252048,0.03655503,109420.0,109410.0,4.49076863]
[1748292252256,0.20105988,109420.0,109410.0,3.67289856]
[1748292252904,0.20105988,109420.0,109410.0,3.68090383]
[1748292253105,0.20105988,109420.0,109410.0,3.67782875]
[1748292253307,0.20205988,109420.0,109410.0,3.67782875]
[1748292254013,0.20305988,109420.0,109410.0,3.67782875]
[1748292255734,0.20315037,109420.0,109410.0,3.67782875]
[1748292259956,0.32429593,109420.0,109410.0,0.55751926]
[1748292260154,0.32429593,109420.0,109410.0,0.67937126]
[1748292260392,0.32429593,109420.0,109410.0,0.3508607]
[1748292260597,0.39687086,109420.0,109410.0,0.0108607]
[1748292261045,0.59257086,109420.0,109410.0,0.0108607]
[1748292261257,0.1919384,109410.0,109400.0,0.0108607]
[1748292261459,0.45910396,109410.0,109400.0,0.5141337]
[1748292261639,0.45910396,109410.0,109400.0,1.06079226]
[1748292263122,0.45910396,109410.0,109400.0,1.04993156]
[1748292264474,0.45910396,109410.0,109400.0,0.447173]
[1748292264874,0.45910396,109410.0,109400.0,0.99383156]
[1748292266815,0.65480396,109410.0,109400.0,0.99383156]
[1748292268489,0.65480396,109410.0,109400.0,0.447173]
[1748292268685,0.65480396,109410.0,109400.0,0.99383156]
[1748292278613,0.65480396,109410.0,109400.0,0.88665856]
[1748292278816,0.7385716,109410.0,109400.0,0.34]
[1748292279030,0.22405595,109400.0,109390.0,0.0108607]
[1748292279243,0.31360151,109400.0,109390.0,0.0108607]
[1748292279455,0.31360151,109400.0,109390.0,0.3508607]
[1748292279865,0.38101342,109400.0,109390.0,0.3508607]
[1748292280316,0.38101342,109400.0,109390.0,0.3518607]
[1748292280526,0.31360151,109400.0,109390.0,0.89851926]
[1748292281343,0.31360151,109400.0,109390.0,0.88765856]
[1748292281579,0.31360151,109400.0,109390.0,0.88865856]
[1748292282516,0.45976151,109400.0,109390.0,0.88865856]
[1748292283141,0.44336151,109400.0,109390.0,0.88865856]
[1748292283472,0.29720151,109400.0,109390.0,0.88865856]
[1748292283712,0.44336151,109400.0,109390.0,0.88865856]
[1748292284284,0.44336151,109400.0,109390.0,1.37009756]
[1748292284448,0.44336151,109400.0,109390.0,1.30340356]
[1748292285552,0.44336151,109400.0,109390.0,1.48623562]
[1748292285553,0.20109646,109400.0,109390.0,1.48623562]
[1748292285768,0.33811595,109400.0,109390.0,1.31920356]
[1748292285980,0.33811595,109400.0,109390.0,1.26406756]
[1748292286189,0.33811595,109400.0,109390.0,1.22528156]
[1748292286423,0.33811595,109400.0,109390.0,1.17059156]
[1748292286667,0.42766151,109400.0,109390.0,1.01149856]
[1748292286885,0.46046151,109400.0,109390.0,0.99450356]
[1748292287102,0.54270752,109400.0,109390.0,0.342]
[1748292287318,0.46046151,109400.0,109390.0,0.88865856]
[1748292288677,0.44406151,109400.0,109390.0,1.32711656]
[1748292289683,0.44406151,109400.0,109390.0,1.28774756]
[1748292289890,0.44406151,109400.0,109390.0,1.22744356]
[1748292290550,0.44406151,109400.0,109390.0,1.23830426]
[1748292291160,0.44406151,109400.0,109390.0,0.6916457]
[1748292291391,0.44406151,109400.0,109390.0,1.23830426]
[1748292293514,0.44406151,109400.0,109390.0,0.89830426]
[1748292294970,0.28150151,109400.0,109390.0,0.89830426]
[1748292295194,0.42766151,109400.0,109390.0,1.26990426]
[1748292295426,0.28150151,109400.0,109390.0,1.26990426]
[1748292295621,0.42766151,109400.0,109390.0,1.26990426]
[1748292295832,0.33811595,109400.0,109390.0,1.26990426]
[1748292296268,0.19195595,109400.0,109390.0,1.46187792]
[1748292296496,0.19195595,109400.0,109390.0,1.26990426]
[1748292296694,0.19195595,109400.0,109390.0,1.28435797]
[1748292297098,0.19195595,109400.0,109390.0,1.46719003]
[1748292297238,0.19195595,109400.0,109390.0,1.49461398]
[1748292297440,0.19195595,109400.0,109390.0,1.28435797]
[1748292297868,0.19195595,109400.0,109390.0,1.47461194]
[1748292298430,0.01828095,109400.0,109390.0,2.1674305]
[1748292298634,0.21023698,109400.0,109390.0,2.18571261]
[1748292298841,0.21023639,109400.0,109390.0,2.1674305]
[1748292299285,0.21023639,109400.0,109390.0,2.16211789]
[1748292299525,0.21023639,109400.0,109390.0,2.15297679]
[1748292299749,0.02741869,109410.0,109400.0,0.24273664]
[1748292299976,0.03655853,109410.0,109400.0,6.36666276]
[1748292300203,0.01827893,109410.0,109400.0,6.36666276]
[1748292300424,0.00913934,109410.0,109400.0,6.36666276]
[1748292300840,0.21935702,109410.0,109400.0,6.36666293]
[1748292301023,0.20115036,109420.0,109410.0,0.5637384]
[1748292301198,0.20115036,109420.0,109410.0,5.85706064]
[1748292301411,0.20115036,109420.0,109410.0,5.25072296]
[1748292301994,0.19201152,109420.0,109410.0,5.25072296]
[1748292302191,0.19201152,109420.0,109410.0,5.27987321]
[1748292302192,0.02750635,109420.0,109410.0,5.27987321]
[1748292302413,0.00109049,109420.0,109410.0,5.42603321]
[1748292302636,0.00109049,109420.0,109410.0,5.44057406]
[1748292303044,0.00209049,109420.0,109410.0,5.53011962]
[1748292303296,0.2101598,109440.0,109430.0,0.58257926]
[1748292303503,0.21929722,109440.0,109430.0,6.85266538]
[1748292304020,0.21929722,109440.0,109430.0,6.85266554]
[1748292304216,0.21929722,109440.0,109430.0,6.30600698]
[1748292304445,0.02741127,109440.0,109430.0,6.32428249]
[1748292304680,0.02741127,109440.0,109430.0,6.31514482]
[1748292304681,0.2101598,109440.0,109430.0,6.31514482]
[1748292305101,0.2101598,109440.0,109430.0,6.8543632]
[1748292305321,0.2101598,109440.0,109430.0,6.8553632]
[1748292305730,0.19188587,109440.0,109430.0,6.6563217]
[1748292305975,0.19188587,109440.0,109430.0,3.66063214]
[1748292306194,0.19188587,109440.0,109430.0,3.85253546]
[1748292306409,0.19188587,109440.0,109430.0,3.86167347]
[1748292306657,0.18279484,109450.0,109440.0,0.52274853]
[1748292306894,0.18288555,109450.0,109440.0,6.49542612]
[1748292307105,9.071e-05,109450.0,109440.0,6.67817465]
[1748292307325,0.02749922,109450.0,109440.0,6.85174592]
[1748292307533,0.22850323,109450.0,109440.0,6.85174592]
[1748292307742,0.22850398,109450.0,109440.0,6.85174592]
[1748292307943,0.21936806,109450.0,109440.0,6.84530757]
[1748292308155,0.19195914,109450.0,109440.0,6.84530757]
[1748292309060,0.19195914,109450.0,109440.0,6.6534217]
[1748292309269,0.21512255,109450.0,109440.0,0.01183558]
[1748292309495,0.45078811,109450.0,109440.0,0.67707214]
[1748292309719,0.45078811,109450.0,109440.0,1.01707214]
[1748292309936,0.18282255,109450.0,109440.0,1.76227923]
[1748292310134,0.20109498,109450.0,109440.0,1.77141648]
[1748292310340,0.19195914,109450.0,109440.0,1.77141648]
[1748292310549,0.19195914,109450.0,109440.0,1.77141657]
[1748292310758,0.20109481,109450.0,109440.0,1.8055905]
[1748292310976,0.21023123,109450.0,109440.0,1.79645382]
[1748292311124,0.20109514,109450.0,109440.0,1.79645382]
[1748292313035,0.20109514,109450.0,109440.0,1.88645382]
[1748292313269,0.19195897,109450.0,109440.0,1.84561665]
[1748292314287,0.19195897,109450.0,109440.0,1.85475399]
[1748292314562,0.19195897,109450.0,109440.0,1.6537307]
[1748292314760,0.19195897,109450.0,109440.0,1.84561665]
[1748292314965,0.19195897,109450.0,109440.0,1.85475399]
[1748292316459,0.19195897,109450.0,109440.0,1.84561665]
[1748292317797,0.19195897,109450.0,109440.0,1.66286812]
[1748292317962,0.19195897,109450.0,109440.0,1.84561665]
[1748292320449,0.19195897,109450.0,109440.0,1.83478107]
[1748292320865,0.18282255,109450.0,109440.0,1.83478107]
[1748292324084,0.18282255,109450.0,109440.0,1.84391841]
[1748292324619,0.18282255,109450.0,109440.0,1.83478107]
[1748292326631,0.18282255,109450.0,109440.0,1.64289512]
[1748292326870,0.18282255,109450.0,109440.0,1.6537307]
[1748292327156,0.18282255,109450.0,109440.0,1.83647923]
[1748292327823,0.19892255,109450.0,109440.0,0.56041358]
[1748292328049,0.21402255,109450.0,109440.0,1.10707214]
[1748292328253,0.21402255,109450.0,109440.0,1.6537307]
[1748292329852,0.21402255,109450.0,109440.0,1.5637307]
[1748292330077,0.30356811,109450.0,109440.0,0.46729358]
[1748292330301,0.30356811,109450.0,109440.0,0.55849414]
[1748292330519,0.30356811,109450.0,109440.0,0.67122214]
[1748292331934,0.30356811,109450.0,109440.0,0.66038656]
[1748292336272,0.30356811,109450.0,109440.0,0.70440656]
[1748292336687,0.30356811,109450.0,109440.0,0.64848356]
[1748292336950,0.30356811,109450.0,109440.0,0.001]
[1748292338875,0.36188177,109450.0,109440.0,0.001]
[1748292339291,0.30356811,109450.0,109440.0,0.001]
[1748292348252,0.30356811,109450.0,109440.0,0.54765856]
[1748292348458,0.44968811,109450.0,109440.0,0.54765856]
[1748292349726,0.44968811,109450.0,109440.0,0.001]
[1748292353995,0.22368578,109440.0,109430.0,0.88665856]
[1748292354198,0.31323134,109440.0,109430.0,1.06194356]
[1748292355084,0.31323134,109440.0,109430.0,0.34]
[1748292355302,0.31323134,109440.0,109430.0,0.88665856]
[1748292355519,0.31323134,109440.0,109430.0,1.03097256]
[1748292356440,0.31323134,109440.0,109430.0,1.01714556]
[1748292356969,0.31323134,109440.0,109430.0,0.88665856]
[1748292358338,0.20740332,109430.0,109420.0,0.57194159]
[1748292358627,0.44306888,109430.0,109420.0,1.17882659]
[1748292359068,0.44306888,109430.0,109420.0,1.16437914]
[1748292359787,0.44306888,109430.0,109420.0,1.16637914]
[1748292360245,0.44306888,109430.0,109420.0,1.16837914]
[1748292360644,0.28144888,109430.0,109420.0,1.16837914]
[1748292360887,0.42756888,109430.0,109420.0,1.18147914]
[1748292361319,0.42756888,109430.0,109420.0,1.19592659]
[1748292362070,0.42756888,109430.0,109420.0,1.19392659]
[1748292363336,0.42756888,109430.0,109420.0,1.17882659]
[1748292363760,0.44406888,109430.0,109420.0,1.17882659]
[1748292363959,0.44406888,109430.0,109420.0,1.05644459]
[1748292364169,0.44406888,109430.0,109420.0,0.91194159]
[1748292364170,0.45956888,109430.0,109420.0,0.91194159]
[1748292364385,0.45956888,109430.0,109420.0,1.05474959]
[1748292364559,0.65526888,109430.0,109420.0,1.05474959]
[1748292364798,0.65526888,109430.0,109420.0,1.04030214]
[1748292365435,0.65526888,109430.0,109420.0,0.89749414]
[1748292366344,1.28572918,109430.0,109420.0,0.01083558]
[1748292366559,1.44668918,109430.0,109420.0,0.01083558]
[1748292366789,1.47411318,109430.0,109420.0,0.01083558]
[1748292367305,1.30295403,109430.0,109420.0,0.01083558]
[1748292367527,1.30495403,109430.0,109420.0,0.01083558]
[1748292367749,0.2237384,109410.0,109400.0,0.54665856]
[1748292367968,0.45940396,109410.0,109400.0,0.54665856]
[1748292368603,0.19195595,109400.0,109390.0,0.01083558]
[1748292368832,0.28150151,109400.0,109390.0,1.12009214]
[1748292369083,0.29770151,109400.0,109390.0,0.89758463]
[1748292369312,0.31330151,109400.0,109390.0,0.01092607]
[1748292370205,0.31330151,109400.0,109390.0,9.049e-05]
[1748292371198,0.31330151,109400.0,109390.0,0.00409049]
[1748292371397,0.31330151,109400.0,109390.0,0.00209049]
[1748292371613,0.31330151,109400.0,109390.0,9.049e-05]
[1748292378300,0.47430151,109400.0,109390.0,9.049e-05]
[1748292378511,0.56382302,109400.0,109390.0,9.049e-05]
[1748292378709,0.47430151,109400.0,109390.0,9.049e-05]
[1748292378922,0.50173351,109400.0,109390.0,9.049e-05]
[1748292380116,0.48789351,109400.0,109390.0,0.54674905]
[1748292380517,0.46046151,109400.0,109390.0,9.049e-05]
[1748292381449,0.46146151,109400.0,109390.0,9.049e-05]
[1748292382852,0.55098302,109400.0,109390.0,9.049e-05]
[1748292385423,0.46146151,109400.0,109390.0,9.049e-05]
[1748292385659,0.28350151,109400.0,109390.0,0.96820305]
[1748292385881,0.42966151,109400.0,109390.0,0.85516805]
[1748292386090,0.42966151,109400.0,109390.0,0.70825805]
[1748292387637,0.28350151,109400.0,109390.0,0.70825805]
[1748292387856,0.42970151,109400.0,109390.0,0.70825805]
[1748292388052,0.28350151,109400.0,109390.0,0.70825805]
[1748292388271,0.42970151,109400.0,109390.0,0.70825805]
[1748292389586,0.28350151,109400.0,109390.0,0.70811972]
[1748292389803,0.42970151,109400.0,109390.0,0.70811972]
[1748292391092,0.28350151,109400.0,109390.0,0.70811972]
[1748292391294,0.42970151,109400.0,109390.0,0.70811972]
[1748292393215,0.42970151,109400.0,109390.0,0.54661072]
[1748292393428,0.44560151,109400.0,109390.0,0.54661072]
[1748292393829,0.42970151,109400.0,109390.0,0.79001472]
[1748292394706,0.42970151,109400.0,109390.0,0.70518872]
[1748292396391,0.44600151,109400.0,109390.0,0.70518872]
[1748292396592,0.19197349,109390.0,109380.0,0.55749414]
[1748292396802,0.28151905,109390.0,109380.0,0.70444814]
[1748292397469,0.28151905,109390.0,109380.0,0.73564814]
[1748292399903,0.28151905,109390.0,109380.0,0.70444814]
[1748292400120,0.37968156,109390.0,109380.0,0.55749414]
[1748292400343,0.31281905,109390.0,109380.0,0.55749414]
[1748292400916,0.31281905,109390.0,109380.0,0.01083558]
[1748292401139,0.19199105,109380.0,109370.0,0.55749414]
[1748292401353,0.62339661,109380.0,109370.0,0.67884314]
[1748292402153,0.62339661,109380.0,109370.0,0.71024314]
[1748292402359,0.62339661,109380.0,109370.0,0.69940756]
[1748292402564,0.62339661,109380.0,109370.0,0.70340756]
[1748292403486,0.62339661,109380.0,109370.0,0.68720756]
[1748292403701,0.62339661,109380.0,109370.0,0.69804314]
[1748292406335,0.62339661,109380.0,109370.0,0.68720756]
[1748292406567,0.62339661,109380.0,109370.0,0.140549]
[1748292406808,0.62339661,109380.0,109370.0,0.68720756]
[1748292407192,0.62339661,109380.0,109370.0,0.68284314]
[1748292407404,0.62339661,109380.0,109370.0,0.66534314]
[1748292407618,0.62339661,109380.0,109370.0,0.66334314]
[1748292408556,0.62339661,109380.0,109370.0,0.69574314]
[1748292410162,0.62339661,109380.0,109370.0,0.55749414]
[1748292410377,0.63859661,109380.0,109370.0,0.55749414]
[1748292410589,0.65519661,109380.0,109370.0,0.55749414]
[1748292410803,0.66896182,109380.0,109370.0,0.54665856]
[1748292413668,0.49100182,109380.0,109370.0,2.17145156]
[1748292413880,0.38769105,109380.0,109370.0,2.52775156]
[1748292414089,0.38769105,109380.0,109370.0,2.86596033]
[1748292414513,0.37854878,109380.0,109370.0,2.87510343]
[1748292414718,0.37854878,109380.0,109370.0,2.93424645]
[1748292414916,0.37854878,109380.0,109370.0,2.9486939]
[1748292416353,0.37854878,109380.0,109370.0,2.93955088]
[1748292417491,0.37854878,109380.0,109370.0,2.9486939]
[1748292417928,0.18284878,109380.0,109370.0,2.9486939]
[1748292418981,0.18284878,109380.0,109370.0,2.73839901]
[1748292419400,0.18284878,109380.0,109370.0,2.93040761]
[1748292420003,0.18284878,109380.0,109370.0,2.73839901]
[1748292420347,0.18284878,109380.0,109370.0,2.92126451]
[1748292420552,0.18284878,109380.0,109370.0,2.73839901]
[1748292420761,0.18284878,109380.0,109370.0,2.92126451]
[1748292420977,0.18293416,109380.0,109370.0,2.73839901]
[1748292421193,0.18293416,109380.0,109370.0,2.93040778]
[1748292421603,0.18293416,109380.0,109370.0,2.73839901]
[1748292422016,0.18284878,109380.0,109370.0,2.92117913]
[1748292422425,0.18284878,109380.0,109370.0,2.73831363]
[1748292422857,0.18284878,109380.0,109370.0,2.92117913]
[1748292424133,0.18284878,109380.0,109370.0,2.73831363]
[1748292425607,0.18284878,109380.0,109370.0,2.75331363]
[1748292426016,0.18284878,109380.0,109370.0,2.60711363]
[1748292426228,0.18284878,109380.0,109370.0,2.75331363]
[1748292427985,0.18284878,109380.0,109370.0,2.60711363]
[1748292431205,0.18284878,109380.0,109370.0,2.76787363]
[1748292431739,0.18284878,109380.0,109370.0,2.60711363]
[1748292431953,0.18284878,109380.0,109370.0,2.75137363]
[1748292432168,0.18284878,109380.0,109370.0,2.76757363]
[1748292432585,0.18284878,109380.0,109370.0,2.78967913]
[1748292432798,0.18284878,109380.0,109370.0,2.95043913]
[1748292433010,0.18284878,109380.0,109370.0,2.60681363]
[1748292433220,0.18284878,109380.0,109370.0,2.76757363]
[1748292433426,0.18284878,109380.0,109370.0,2.95043913]
[1748292433813,0.18284878,109380.0,109370.0,2.76757363]
[1748292439003,0.18284878,109380.0,109370.0,2.73507363]
[1748292439257,0.30439434,109380.0,109370.0,1.49441863]
[1748292440227,0.30439434,109380.0,109370.0,1.17248863]
[1748292440429,0.30439434,109380.0,109370.0,1.15414463]
[1748292440646,0.30439434,109380.0,109370.0,1.07273563]
[1748292440858,0.30439434,109380.0,109370.0,1.09284063]
[1748292441065,0.30439434,109380.0,109370.0,0.96602063]
[1748292441307,0.30439434,109380.0,109370.0,1.11662163]
[1748292441506,0.50009434,109380.0,109370.0,1.11662163]
[1748292441746,0.50009434,109380.0,109370.0,1.12749292]
[1748292442517,0.50009434,109380.0,109370.0,0.97689192]
[1748292443392,0.50009434,109380.0,109370.0,0.92689192]
[1748292443620,0.50009434,109380.0,109370.0,1.04018292]
[1748292444593,0.50009434,109380.0,109370.0,0.92689192]
[1748292445057,0.56159734,109380.0,109370.0,0.04031874]
[1748292445914,0.50009434,109380.0,109370.0,0.5869773]
[1748292446134,0.50009434,109380.0,109370.0,0.56165856]
[1748292447140,0.51403633,109380.0,109370.0,0.56165856]
[1748292450302,0.31833633,109380.0,109370.0,0.56165856]
[1748292461923,0.38996037,109380.0,109370.0,0.56165856]
[1748292462505,0.31833633,109380.0,109370.0,0.56165856]
[1748292470055,0.28633633,109380.0,109370.0,0.66560856]
[1748292470274,0.43253633,109380.0,109370.0,0.66560856]
[1748292470503,0.27239434,109380.0,109370.0,0.68140856]
[1748292470734,0.41859434,109380.0,109370.0,0.69660856]
[1748292470917,0.41859434,109380.0,109370.0,0.70747985]
[1748292472380,0.41859434,109380.0,109370.0,0.67647985]
[1748292472820,0.41859434,109380.0,109370.0,0.69796885]
[1748292472821,0.43439434,109380.0,109370.0,0.69796885]
[1748292473034,0.45049434,109380.0,109370.0,0.67753885]
[1748292474768,0.45049434,109380.0,109370.0,0.57252985]
[1748292474987,0.53432136,109380.0,109370.0,0.57252985]
[1748292475178,0.54769754,109380.0,109370.0,0.57252985]
[1748292475527,0.46387052,109380.0,109370.0,0.57252985]
[1748292476776,0.46387052,109380.0,109370.0,0.67557385]
[1748292476987,0.46387052,109380.0,109370.0,0.57252985]
[1748292477287,0.46387052,109380.0,109370.0,0.67557385]
[1748292477532,0.46387052,109380.0,109370.0,0.57252985]
[1748292479400,0.46387052,109380.0,109370.0,0.80877285]
[1748292479881,0.65957052,109380.0,109370.0,0.80877285]
[1748292480084,0.65957052,109380.0,109370.0,0.79677285]
[1748292480330,0.65957052,109380.0,109370.0,0.72867285]
[1748292483858,0.65957052,109380.0,109370.0,0.57252985]
[1748292484287,0.65957052,109380.0,109370.0,0.02587129]
[1748292484503,0.65957052,109380.0,109370.0,0.57252985]
[1748292485690,0.74702023,109380.0,109370.0,0.57252985]
[1748292487092,0.74702023,109380.0,109370.0,0.56165856]
[1748292488579,0.65957052,109380.0,109370.0,0.57252985]
[1748292492015,0.65957052,109380.0,109370.0,0.43589573]
[1748292493310,0.66057052,109380.0,109370.0,0.43589573]
[1748292493532,0.51437052,109380.0,109370.0,0.43589573]
[1748292493745,0.62867052,109380.0,109370.0,1.14064273]
[1748292493982,0.62967052,109380.0,109370.0,1.14064273]
[1748292495253,0.62967052,109380.0,109370.0,1.11192273]
[1748292500029,0.48347052,109380.0,109370.0,1.11192273]
[1748292500247,0.61633434,109380.0,109370.0,1.55294717]
[1748292501102,0.61633434,109380.0,109370.0,1.56739462]
[1748292502586,0.61633434,109380.0,109370.0,1.37693362]
[1748292502825,0.61633434,109380.0,109370.0,0.81970118]
[1748292503254,0.61633434,109380.0,109370.0,0.86970118]
[1748292503475,0.64903434,109380.0,109370.0,0.63061218]
[1748292503757,0.63243434,109380.0,109370.0,0.63061218]
[1748292503943,0.48623434,109380.0,109370.0,0.20614029]
[1748292504208,0.48623434,109380.0,109370.0,1.30724561]
[1748292504209,0.39887307,109380.0,109370.0,1.30724561]
[1748292504435,0.54507348,109380.0,109370.0,1.12438011]
[1748292504891,0.54507348,109380.0,109370.0,1.07438011]
[1748292505102,0.54507348,109380.0,109370.0,1.24637432]
[1748292505526,0.54507348,109380.0,109370.0,1.26466078]
[1748292505738,0.54507348,109380.0,109370.0,1.27380388]
[1748292506386,0.54507348,109380.0,109370.0,1.29746415]
[1748292507301,0.36222429,109380.0,109370.0,1.3066065]
[1748292507523,0.5542155,109380.0,109370.0,1.29746382]
[1748292507733,0.5542155,109380.0,109370.0,1.27003476]
[1748292508410,0.53593121,109380.0,109370.0,1.07802607]
[1748292508655,0.53593121,109380.0,109370.0,1.06292607]
[1748292509566,0.34023121,109380.0,109370.0,1.06292607]
[1748292510333,0.42977677,109380.0,109370.0,0.49978625]
[1748292510507,0.42977677,109380.0,109370.0,1.04642607]
[1748292514308,0.46107677,109380.0,109370.0,1.04642607]
[1748292515327,0.28357677,109380.0,109370.0,1.04642607]
[1748292515510,0.42977677,109380.0,109370.0,1.04642607]
[1748292515943,0.42977677,109380.0,109370.0,1.04278654]
[1748292516408,0.01118218,109380.0,109370.0,1.22565204]
[1748292516629,0.35851532,109380.0,109370.0,1.27523799]
[1748292517477,0.34937339,109380.0,109370.0,1.27523816]
[1748292517692,0.34937339,109380.0,109370.0,1.27887769]
[1748292517948,0.34937339,109380.0,109370.0,1.28802054]
[1748292518714,0.34937339,109380.0,109370.0,1.27887769]
[1748292519135,0.34937339,109380.0,109370.0,1.26973467]
[1748292521302,0.34937339,109380.0,109370.0,1.26059157]
[1748292521506,0.33108878,109380.0,109370.0,1.06252607]
[1748292521733,0.33108878,109380.0,109370.0,1.25453476]
[1748292523369,0.33108878,109380.0,109370.0,1.06252607]
[1748292523599,0.33108878,109380.0,109370.0,1.04642607]
[1748292524282,0.33108878,109380.0,109370.0,1.23843484]
[1748292524931,0.33108878,109380.0,109370.0,1.28843484]
[1748292525163,0.33108878,109380.0,109370.0,1.23843484]
[1748292525669,0.33108878,109380.0,109370.0,1.24757803]
[1748292526100,0.33108878,109380.0,109370.0,1.55192635]
[1748292527716,0.18488878,109380.0,109370.0,1.55192635]
[1748292527918,0.33108878,109380.0,109370.0,1.56106945]
[1748292528322,0.33108878,109380.0,109370.0,1.55192635]
[1748292528949,0.33108878,109380.0,109370.0,1.33527439]
[1748292529367,0.33108878,109380.0,109370.0,1.51813989]
[1748292529891,0.33108878,109380.0,109370.0,1.52728316]
[1748292530843,0.33108878,109380.0,109370.0,1.57728316]
[1748292531057,0.33108878,109380.0,109370.0,1.52728316]
[1748292533372,0.33108878,109380.0,109370.0,1.33527439]
[1748292534346,0.33108878,109380.0,109370.0,1.32075714]
[1748292535176,0.33108878,109380.0,109370.0,1.30505714]
[1748292535791,0.33108878,109380.0,109370.0,1.35505714]
[1748292536955,0.33108878,109380.0,109370.0,1.36958215]
[1748292537189,0.45293434,109380.0,109370.0,0.94501208]
[1748292537385,0.45293434,109380.0,109370.0,0.89501208]
[1748292537609,0.45293434,109380.0,109370.0,0.77941908]
[1748292538026,0.45293434,109380.0,109370.0,0.57626108]
[1748292538252,0.45293434,109380.0,109370.0,0.02952501]
[1748292538656,0.48036934,109380.0,109370.0,0.02589412]
[1748292539515,0.49434038,109380.0,109370.0,0.02589412]
[1748292539725,0.49434038,109380.0,109370.0,0.015]
[1748292540123,0.56205762,109380.0,109370.0,0.015]
[1748292540589,0.57108538,109380.0,109370.0,0.015]
[1748292540870,0.50336814,109380.0,109370.0,0.015]
[1748292541060,0.49434038,109380.0,109370.0,0.56173607]
[1748292541591,0.49434038,109380.0,109370.0,0.015]
[1748292543029,0.49434038,109380.0,109370.0,0.56173607]
[1748292543852,0.34814038,109380.0,109370.0,0.56173607]
[1748292544076,0.30186934,109380.0,109370.0,1.52212807]
[1748292544291,0.30186934,109380.0,109370.0,1.74613667]
[1748292544292,0.23060814,109380.0,109370.0,1.74613667]
[1748292544503,0.34937314,109380.0,109370.0,1.74613667]
[1748292544739,0.34937314,109380.0,109370.0,1.75527969]
[1748292544985,0.21231532,109380.0,109370.0,1.77356531]
[1748292545206,0.21231532,109380.0,109370.0,1.77356548]
[1748292545424,0.21231532,109380.0,109370.0,1.76442263]
[1748292545629,0.21231532,109380.0,109370.0,1.77894764]
[1748292545863,0.21231532,109380.0,109370.0,1.82894764]
[1748292548106,0.21231532,109380.0,109370.0,1.83809049]
[1748292548772,0.21231532,109380.0,109370.0,1.81066168]
[1748292549008,0.19403121,109380.0,109370.0,1.81066168]
[1748292551024,0.19403121,109380.0,109370.0,1.8289473]
[1748292551516,0.3717898,109380.0,109370.0,0.41952501]
[1748292551767,0.3871898,109380.0,109370.0,0.91626108]
[1748292552234,0.29927677,109380.0,109370.0,0.91626108]
[1748292552445,0.42977677,109380.0,109370.0,2.01006959]
[1748292553565,0.42977677,109380.0,109370.0,2.06006959]
[1748292556840,0.34937323,109380.0,109370.0,2.27732104]
[1748292557063,0.35851516,109380.0,109370.0,2.27732113]
[1748292557277,0.35851516,109380.0,109370.0,2.2864639]
[1748292557620,0.02032361,109380.0,109370.0,2.32643159]
[1748292557824,0.0386079,109380.0,109370.0,2.32643159]
[1748292558624,0.23059903,109380.0,109370.0,2.32643159]
[1748292558970,0.23059903,109380.0,109370.0,2.31556907]
[1748292560420,0.23059903,109380.0,109370.0,2.30104406]
[1748292560587,0.02946606,109380.0,109370.0,2.30104406]
[1748292560764,0.22145727,109380.0,109370.0,2.30104406]
[1748292561165,0.22145727,109380.0,109370.0,2.29190138]
[1748292561570,0.2123155,109380.0,109370.0,2.28275861]
[1748292561785,0.2123155,109380.0,109370.0,2.43810146]
[1748292564442,0.2123155,109380.0,109370.0,2.41981567]
[1748292564735,0.20317348,109380.0,109370.0,2.41981567]
[1748292567566,0.19403121,109380.0,109370.0,2.26447257]
[1748292567797,0.19403121,109380.0,109370.0,2.27361576]
[1748292567993,0.19403121,109380.0,109370.0,2.28275886]
[1748292570085,0.19403121,109380.0,109370.0,2.27361576]
[1748292572128,0.18488878,109380.0,109370.0,2.27361576]
[1748292573351,0.18488878,109380.0,109370.0,2.29190188]
[1748292573561,0.18488878,109380.0,109370.0,2.28275886]
[1748292574909,0.18488878,109380.0,109370.0,2.25731576]
[1748292575129,0.18488878,109380.0,109370.0,2.04920707]
[1748292575342,0.18488878,109380.0,109370.0,2.24121584]
[1748292577113,0.18488878,109380.0,109370.0,2.25035903]
[1748292577536,0.18488878,109380.0,109370.0,2.25950213]
[1748292579252,0.18488878,109380.0,109370.0,2.27600213]
[1748292579452,0.20317307,109380.0,109370.0,2.29130213]
[1748292579823,0.2123155,109380.0,109370.0,2.29130213]
[1748292580069,0.2103155,109380.0,109370.0,2.29130213]
[1748292580254,0.2103155,109380.0,109370.0,2.30044515]
[1748292580468,0.2103155,109380.0,109370.0,2.30044482]
[1748292581083,0.20117348,109380.0,109370.0,2.29130188]
[1748292581289,0.20117348,109380.0,109370.0,2.43750188]
[1748292582288,0.20117348,109380.0,109370.0,1.71097969]
[1748292582481,0.19203121,109380.0,109370.0,2.38741576]
[1748292583450,0.48301903,109400.0,109390.0,0.58125619]
[1748292583451,9.065e-05,109400.0,109390.0,0.58125619]
[1748292583677,9.065e-05,109400.0,109390.0,6.71447834]
[1748292583909,0.02751143,109400.0,109390.0,6.71447843]
[1748292584115,0.03665187,109400.0,109390.0,6.15860126]
[1748292584335,9.065e-05,109400.0,109390.0,6.16774227]